[Event "Titled Tuesday Blitz June 8 2021"]
[White "Tejedor Fuente, Enrique"]
[Black "Ibarra Jerez, Jose Carlos"]
[WhiteFideId "2299100"]
[BlackFideId "2226332"]
[WhiteElo "2636"]
[BlackElo "2814"]
[Result "0-1"]
[Round "07"]
[TimeControl "180+1"]
[Date "2021.06.08"]
[WhiteClock "0:00:02"]
[BlackClock "0:00:55"]

1. e4 {[%clk 0:03:00]}  c5 {[%clk 0:02:59]} 2. Nc3 {[%clk 0:02:59]}  a6 {[%clk 0:02:59]} 3. Nf3 {[%clk 0:02:56]}  b5 {[%clk 0:02:55]} 4. a4 {[%clk 0:02:51]}  b4 {[%clk 0:02:55]} 5. Nd5 {[%clk 0:02:52]}  Bb7 {[%clk 0:02:54]} 6. Bd3 {[%clk 0:02:38]}  e6 {[%clk 0:02:44]} 7. Nf4 {[%clk 0:02:38]}  Qc7 {[%clk 0:02:40]} 8. Nh5 {[%clk 0:02:32]}  c4 {[%clk 0:02:36]} 9. Be2 {[%clk 0:02:33]}  Bxe4 {[%clk 0:02:35]} 10. d3 {[%clk 0:02:33]}  cxd3 {[%clk 0:02:35]} 11. Bxd3 {[%clk 0:02:33]}  Bg6 {[%clk 0:02:19]} 12. Ng3 {[%clk 0:02:27]}  Nf6 {[%clk 0:02:14]} 13. O-O {[%clk 0:02:21]}  Nc6 {[%clk 0:02:13]} 14. a5 {[%clk 0:01:28]}  Bc5 {[%clk 0:02:09]} 15. Qe2 {[%clk 0:01:23]}  Bxd3 {[%clk 0:02:00]} 16. Qxd3 {[%clk 0:01:22]}  h6 {[%clk 0:01:55]} 17. Qc4 {[%clk 0:01:10]}  Nxa5 {[%clk 0:01:45]} 18. Qh4 {[%clk 0:01:10]}  Be7 {[%clk 0:01:44]} 19. Bg5 {[%clk 0:01:03]}  Nc6 {[%clk 0:01:43]} 20. Bf4 {[%clk 0:00:54]}  d6 {[%clk 0:01:39]} 21. Nh5 {[%clk 0:00:49]}  g5 {[%clk 0:01:22]} 22. Nxf6+ {[%clk 0:00:46]}  Bxf6 {[%clk 0:01:22]} 23. Bxg5 {[%clk 0:00:45]}  hxg5 {[%clk 0:01:22]} 24. Qc4 {[%clk 0:00:32]}  d5 {[%clk 0:01:20]} 25. Qg4 {[%clk 0:00:29]}  Ne5 {[%clk 0:01:19]} 26. Nxe5 {[%clk 0:00:24]}  Qxe5 {[%clk 0:01:19]} 27. h3 {[%clk 0:00:23]}  Qe4 {[%clk 0:01:13]} 28. Qg3 {[%clk 0:00:22]}  Be5 {[%clk 0:01:05]} 29. Qxg5 {[%clk 0:00:16]}  Qf4 {[%clk 0:01:05]} 30. Qxf4 {[%clk 0:00:16]}  Bxf4 {[%clk 0:01:06]} 31. Ra4 {[%clk 0:00:16]}  a5 {[%clk 0:01:05]} 32. c3 {[%clk 0:00:16]}  Bd6 {[%clk 0:01:03]} 33. Rfa1 {[%clk 0:00:15]}  bxc3 {[%clk 0:01:03]} 34. bxc3 {[%clk 0:00:16]}  Ke7 {[%clk 0:01:03]} 35. c4 {[%clk 0:00:06]}  Rh4 {[%clk 0:01:00]} 36. cxd5 {[%clk 0:00:03]}  Rxa4 {[%clk 0:00:58]} 37. Rxa4 {[%clk 0:00:03]}  exd5 {[%clk 0:00:58]} 38. h4 {[%clk 0:00:02]}  Bb4 {[%clk 0:00:56]} 39. g4 {[%clk 0:00:02]}  Kf6 {[%clk 0:00:56]} 40. f4 {[%clk 0:00:02]}  d4 {[%clk 0:00:57]} 41. Kf2 {[%clk 0:00:02]}  Re8 {[%clk 0:00:57]} 42. Ra2 {[%clk 0:00:01]}  d3 {[%clk 0:00:56]} 43. g5+ {[%clk 0:00:01]}  Kf5 {[%clk 0:00:57]} 44. Kf3 {[%clk 0:00:02]}  d2 {[%clk 0:00:56]} 45. Ra1 {[%clk 0:00:02]}  Re1 {[%clk 0:00:55]} 0-1


[Site "https://www.chess.com"]

[Event "Titled Tuesday Blitz June 8 2021"]
[White "Tristan, Leonardo"]
[Black "Zubov, Alexander"]
[WhiteFideId "113816"]
[BlackFideId "14109409"]
[WhiteElo "2404"]
[BlackElo "2740"]
[Result "0-1"]
[Round "07"]
[TimeControl "180+1"]
[Date "2021.06.08"]
[WhiteClock "0:00:01"]
[BlackClock "0:00:39"]

1. d4 {[%clk 0:03:00]}  Nf6 {[%clk 0:02:59]} 2. Bf4 {[%clk 0:03:01]}  d5 {[%clk 0:02:58]} 3. e3 {[%clk 0:03:01]}  c5 {[%clk 0:02:58]} 4. Nf3 {[%clk 0:03:01]}  cxd4 {[%clk 0:02:58]} 5. exd4 {[%clk 0:03:01]}  Nc6 {[%clk 0:02:58]} 6. Nbd2 {[%clk 0:03:02]}  Bg4 {[%clk 0:02:54]} 7. c3 {[%clk 0:03:01]}  e6 {[%clk 0:02:54]} 8. Qb3 {[%clk 0:03:02]}  Qc8 {[%clk 0:02:53]} 9. Bd3 {[%clk 0:03:02]}  Be7 {[%clk 0:02:53]} 10. O-O {[%clk 0:03:02]}  Bh5 {[%clk 0:02:53]} 11. a4 {[%clk 0:02:57]}  Bg6 {[%clk 0:02:50]} 12. Bxg6 {[%clk 0:02:56]}  hxg6 {[%clk 0:02:50]} 13. Rfe1 {[%clk 0:02:57]}  O-O {[%clk 0:02:39]} 14. Qd1 {[%clk 0:02:41]}  Na5 {[%clk 0:02:32]} 15. Ne5 {[%clk 0:02:40]}  Nd7 {[%clk 0:02:31]} 16. Qg4 {[%clk 0:02:32]}  Nxe5 {[%clk 0:02:27]} 17. Bxe5 {[%clk 0:02:26]}  Nc6 {[%clk 0:02:09]} 18. Nf3 {[%clk 0:02:19]}  Qd8 {[%clk 0:01:59]} 19. h4 {[%clk 0:02:17]}  Bf6 {[%clk 0:01:58]} 20. Re3 {[%clk 0:01:58]}  Ne7 {[%clk 0:01:54]} 21. Ng5 {[%clk 0:01:37]}  Nf5 {[%clk 0:01:51]} 22. Rh3 {[%clk 0:01:37]}  Re8 {[%clk 0:01:47]} 23. Re1 {[%clk 0:01:31]}  a6 {[%clk 0:01:40]} 24. Qf4 {[%clk 0:01:08]}  b5 {[%clk 0:01:35]} 25. g4 {[%clk 0:00:31]}  Nh6 {[%clk 0:01:25]} 26. Nf3 {[%clk 0:00:24]}  bxa4 {[%clk 0:01:09]} 27. Bc7 {[%clk 0:00:24]}  Qd7 {[%clk 0:01:04]} 28. g5 {[%clk 0:00:24]}  e5 {[%clk 0:01:01]} 29. Bxe5 {[%clk 0:00:16]}  Qxh3 {[%clk 0:00:58]} 30. gxh6 {[%clk 0:00:09]}  Qf5 {[%clk 0:00:57]} 31. Qg3 {[%clk 0:00:02]}  gxh6 {[%clk 0:00:55]} 32. Re3 {[%clk 0:00:02]}  Re6 {[%clk 0:00:50]} 33. Nh2 {[%clk 0:00:03]}  Bxe5 {[%clk 0:00:48]} 34. dxe5 {[%clk 0:00:02]}  h5 {[%clk 0:00:49]} 35. f4 {[%clk 0:00:01]}  Rb8 {[%clk 0:00:46]} 36. Nf3 {[%clk 0:00:02]}  Qg4 {[%clk 0:00:45]} 37. Qxg4 {[%clk 0:00:02]}  hxg4 {[%clk 0:00:46]} 38. Nd4 {[%clk 0:00:03]}  Rxb2 {[%clk 0:00:38]} 39. Nxe6 {[%clk 0:00:02]}  a3 {[%clk 0:00:38]} 40. Nd4 {[%clk 0:00:01]}  a2 {[%clk 0:00:39]} 41. Nb3 {[%clk 0:00:01]}  Rxb3 {[%clk 0:00:39]} 0-1


[Site "https://www.chess.com"]

[Event "Titled Tuesday Blitz June 8 2021"]
[White "Tsydypov, Zhamsaran"]
[Black "Kazakouski, Valery"]
[WhiteFideId "4108566"]
[BlackFideId "13507443"]
[WhiteElo "2645"]
[BlackElo "2546"]
[Result "1-0"]
[Round "07"]
[TimeControl "180+1"]
[Date "2021.06.08"]
[WhiteClock "0:00:12"]
[BlackClock "0:00:14"]

1. e4 {[%clk 0:03:00]}  c5 {[%clk 0:02:59]} 2. Nf3 {[%clk 0:03:00]}  a6 {[%clk 0:03:00]} 3. d4 {[%clk 0:02:58]}  cxd4 {[%clk 0:03:01]} 4. Nxd4 {[%clk 0:02:57]}  Nf6 {[%clk 0:03:01]} 5. Nc3 {[%clk 0:02:53]}  e5 {[%clk 0:03:01]} 6. Nf3 {[%clk 0:02:53]}  Bb4 {[%clk 0:03:00]} 7. Bc4 {[%clk 0:02:32]}  Qc7 {[%clk 0:03:00]} 8. Bb3 {[%clk 0:02:22]}  d6 {[%clk 0:02:53]} 9. O-O {[%clk 0:02:11]}  Bxc3 {[%clk 0:02:53]} 10. bxc3 {[%clk 0:02:10]}  Nxe4 {[%clk 0:02:53]} 11. Re1 {[%clk 0:02:05]}  Nc5 {[%clk 0:02:42]} 12. Ba3 {[%clk 0:01:52]}  O-O {[%clk 0:02:37]} 13. Ng5 {[%clk 0:01:50]}  Bf5 {[%clk 0:02:12]} 14. Bxf7+ {[%clk 0:01:36]}  Rxf7 {[%clk 0:02:11]} 15. Nxf7 {[%clk 0:01:37]}  Qxf7 {[%clk 0:01:32]} 16. Qxd6 {[%clk 0:01:23]}  Ncd7 {[%clk 0:01:32]} 17. Rxe5 {[%clk 0:01:17]}  Nc6 {[%clk 0:01:32]} 18. Re2 {[%clk 0:01:09]}  Re8 {[%clk 0:01:28]} 19. Rxe8+ {[%clk 0:01:05]}  Qxe8 {[%clk 0:01:29]} 20. Qc7 {[%clk 0:00:56]}  Qb8 {[%clk 0:01:21]} 21. Qxb8+ {[%clk 0:00:53]}  Ndxb8 {[%clk 0:01:21]} 22. Rb1 {[%clk 0:00:48]}  b5 {[%clk 0:01:17]} 23. c4 {[%clk 0:00:48]}  Bxc2 {[%clk 0:01:17]} 24. Rb2 {[%clk 0:00:46]}  Bd3 {[%clk 0:01:17]} 25. cxb5 {[%clk 0:00:46]}  axb5 {[%clk 0:01:18]} 26. Rd2 {[%clk 0:00:45]}  Bc4 {[%clk 0:01:15]} 27. f3 {[%clk 0:00:45]}  Kf7 {[%clk 0:01:10]} 28. Kf2 {[%clk 0:00:44]}  Ne5 {[%clk 0:01:08]} 29. Bd6 {[%clk 0:00:37]}  Nbc6 {[%clk 0:01:08]} 30. Bxe5 {[%clk 0:00:37]}  Nxe5 {[%clk 0:01:09]} 31. Ke3 {[%clk 0:00:37]}  Ke6 {[%clk 0:01:03]} 32. Ke4 {[%clk 0:00:32]}  Nc6 {[%clk 0:00:59]} 33. f4 {[%clk 0:00:32]}  Nb4 {[%clk 0:00:42]} 34. a3 {[%clk 0:00:30]}  Nc6 {[%clk 0:00:37]} 35. f5+ {[%clk 0:00:24]}  Ke7 {[%clk 0:00:37]} 36. g4 {[%clk 0:00:24]}  Nd8 {[%clk 0:00:31]} 37. g5 {[%clk 0:00:17]}  Nf7 {[%clk 0:00:31]} 38. h4 {[%clk 0:00:18]}  h6 {[%clk 0:00:30]} 39. g6 {[%clk 0:00:17]}  Nd6+ {[%clk 0:00:29]} 40. Ke5 {[%clk 0:00:17]}  Ne8 {[%clk 0:00:28]} 41. Rd4 {[%clk 0:00:17]}  Bg8 {[%clk 0:00:19]} 42. a4 {[%clk 0:00:13]}  bxa4 {[%clk 0:00:20]} 43. Rxa4 {[%clk 0:00:13]}  Nf6 {[%clk 0:00:20]} 44. Ra7+ {[%clk 0:00:13]}  Nd7+ {[%clk 0:00:21]} 45. Kd4 {[%clk 0:00:13]}  h5 {[%clk 0:00:17]} 46. Ke4 {[%clk 0:00:14]}  Bc4 {[%clk 0:00:15]} 47. Kf4 {[%clk 0:00:14]}  Bd3 {[%clk 0:00:13]} 48. Kg5 {[%clk 0:00:14]}  Ke8 {[%clk 0:00:13]} 49. Ra8+ {[%clk 0:00:11]}  Ke7 {[%clk 0:00:14]} 50. Rg8 {[%clk 0:00:12]} 1-0


[Site "https://www.chess.com"]

[Event "Titled Tuesday Blitz June 8 2021"]
[White "Vignesh, N R"]
[Black "Aradhya, Garg"]
[WhiteFideId "25012215"]
[BlackFideId "25006746"]
[WhiteElo "2401"]
[BlackElo "2146"]
[Result "1/2-1/2"]
[Round "07"]
[TimeControl "180+1"]
[Date "2021.06.08"]
[WhiteClock "0:00:12"]
[BlackClock "0:00:14"]

1. d4 {[%clk 0:03:00]}  d5 {[%clk 0:02:59]} 2. Bf4 {[%clk 0:03:00]}  Nf6 {[%clk 0:02:59]} 3. e3 {[%clk 0:03:00]}  c5 {[%clk 0:02:59]} 4. c3 {[%clk 0:02:59]}  Nc6 {[%clk 0:02:59]} 5. Nd2 {[%clk 0:02:59]}  Bf5 {[%clk 0:02:59]} 6. Ngf3 {[%clk 0:02:56]}  Qb6 {[%clk 0:02:59]} 7. Qb3 {[%clk 0:02:47]}  c4 {[%clk 0:02:54]} 8. Qxb6 {[%clk 0:02:47]}  axb6 {[%clk 0:02:54]} 9. a3 {[%clk 0:02:47]}  e6 {[%clk 0:02:51]} 10. Nh4 {[%clk 0:02:44]}  Be4 {[%clk 0:02:51]} 11. f3 {[%clk 0:02:41]}  Bg6 {[%clk 0:02:50]} 12. Nxg6 {[%clk 0:02:41]}  hxg6 {[%clk 0:02:51]} 13. g4 {[%clk 0:02:38]}  Kd7 {[%clk 0:02:47]} 14. e4 {[%clk 0:02:16]}  b5 {[%clk 0:02:41]} 15. e5 {[%clk 0:02:13]}  Ne8 {[%clk 0:02:40]} 16. Rc1 {[%clk 0:02:08]}  Be7 {[%clk 0:02:36]} 17. Bg3 {[%clk 0:02:02]}  g5 {[%clk 0:02:36]} 18. Be2 {[%clk 0:01:59]}  f6 {[%clk 0:02:35]} 19. exf6 {[%clk 0:01:57]}  gxf6 {[%clk 0:02:36]} 20. h4 {[%clk 0:01:52]}  gxh4 {[%clk 0:02:36]} 21. Rxh4 {[%clk 0:01:52]}  Rxh4 {[%clk 0:02:30]} 22. Bxh4 {[%clk 0:01:52]}  e5 {[%clk 0:02:31]} 23. dxe5 {[%clk 0:01:48]}  fxe5 {[%clk 0:02:28]} 24. Bxe7 {[%clk 0:01:46]}  Kxe7 {[%clk 0:02:22]} 25. Kf2 {[%clk 0:01:46]}  Ng7 {[%clk 0:02:06]} 26. Rh1 {[%clk 0:01:45]}  Kf7 {[%clk 0:02:06]} 27. Bd1 {[%clk 0:01:35]}  Ne7 {[%clk 0:02:01]} 28. Bc2 {[%clk 0:01:31]}  Ng6 {[%clk 0:01:58]} 29. Rh6 {[%clk 0:01:28]}  Nf4 {[%clk 0:01:57]} 30. Rb6 {[%clk 0:01:28]}  Rb8 {[%clk 0:01:46]} 31. Rxb5 {[%clk 0:01:26]}  Nge6 {[%clk 0:01:46]} 32. Nf1 {[%clk 0:01:22]}  Ke7 {[%clk 0:01:42]} 33. Ne3 {[%clk 0:01:17]}  Kd6 {[%clk 0:01:37]} 34. Bf5 {[%clk 0:01:15]}  Kc6 {[%clk 0:01:19]} 35. a4 {[%clk 0:00:41]}  Nc5 {[%clk 0:01:17]} 36. Bc2 {[%clk 0:00:38]}  Rh8 {[%clk 0:01:10]} 37. b4 {[%clk 0:00:28]}  cxb3 {[%clk 0:01:02]} 38. Bxb3 {[%clk 0:00:28]}  Rh2+ {[%clk 0:00:58]} 39. Kg3 {[%clk 0:00:24]}  Rh3+ {[%clk 0:00:55]} 40. Kf2 {[%clk 0:00:24]}  Rh2+ {[%clk 0:00:27]} 41. Kg3 {[%clk 0:00:21]}  Rh3+ {[%clk 0:00:18]} 42. Kf2 {[%clk 0:00:20]}  Nfd3+ {[%clk 0:00:14]} 43. Kg2 {[%clk 0:00:12]}  Nf4+ {[%clk 0:00:14]} 44. Kf2 {[%clk 0:00:12]} 1/2-1/2


[Site "https://www.chess.com"]

[Event "Titled Tuesday Blitz June 8 2021"]
[White "Visakh N R"]
[Black "Goryachkina, Aleksandra"]
[WhiteFideId "25012223"]
[BlackFideId "4147103"]
[WhiteElo "2428"]
[BlackElo "2441"]
[Result "1-0"]
[Round "07"]
[TimeControl "180+1"]
[Date "2021.06.08"]
[WhiteClock "0:00:27"]
[BlackClock "0:00:04"]

1. e4 {[%clk 0:02:57]}  c5 {[%clk 0:02:58]} 2. Nf3 {[%clk 0:02:57]}  e6 {[%clk 0:02:58]} 3. Nc3 {[%clk 0:02:45]}  a6 {[%clk 0:02:53]} 4. d4 {[%clk 0:02:44]}  cxd4 {[%clk 0:02:53]} 5. Nxd4 {[%clk 0:02:45]}  d6 {[%clk 0:02:52]} 6. Be2 {[%clk 0:02:42]}  Nf6 {[%clk 0:02:50]} 7. O-O {[%clk 0:02:42]}  Be7 {[%clk 0:02:49]} 8. Be3 {[%clk 0:02:42]}  Qc7 {[%clk 0:02:48]} 9. a4 {[%clk 0:02:42]}  Nc6 {[%clk 0:02:44]} 10. f4 {[%clk 0:02:41]}  O-O {[%clk 0:02:43]} 11. Kh1 {[%clk 0:02:40]}  Bd7 {[%clk 0:02:42]} 12. Qe1 {[%clk 0:02:32]}  Rac8 {[%clk 0:02:30]} 13. Qg3 {[%clk 0:02:29]}  Kh8 {[%clk 0:01:59]} 14. Nxc6 {[%clk 0:02:25]}  Bxc6 {[%clk 0:01:54]} 15. Bd3 {[%clk 0:02:20]}  d5 {[%clk 0:01:44]} 16. exd5 {[%clk 0:02:12]}  Bxd5 {[%clk 0:01:11]} 17. Bd4 {[%clk 0:02:04]}  Bc4 {[%clk 0:01:09]} 18. Be5 {[%clk 0:01:47]}  Qa5 {[%clk 0:01:01]} 19. Rad1 {[%clk 0:01:38]}  Bxd3 {[%clk 0:00:55]} 20. Rxd3 {[%clk 0:01:39]}  Rfd8 {[%clk 0:00:53]} 21. Rdf3 {[%clk 0:01:37]}  Rd2 {[%clk 0:00:39]} 22. f5 {[%clk 0:01:30]}  exf5 {[%clk 0:00:20]} 23. Rxf5 {[%clk 0:01:28]}  Qd8 {[%clk 0:00:17]} 24. Ne4 {[%clk 0:01:12]}  Rd1 {[%clk 0:00:16]} 25. Nxf6 {[%clk 0:01:10]}  Rxf1+ {[%clk 0:00:14]} 26. Rxf1 {[%clk 0:01:11]}  Bxf6 {[%clk 0:00:14]} 27. Bxf6 {[%clk 0:01:10]}  gxf6 {[%clk 0:00:15]} 28. c3 {[%clk 0:01:10]}  Rc6 {[%clk 0:00:14]} 29. h3 {[%clk 0:01:09]}  Re6 {[%clk 0:00:13]} 30. Kh2 {[%clk 0:01:09]}  Qd6 {[%clk 0:00:13]} 31. Qxd6 {[%clk 0:01:04]}  Rxd6 {[%clk 0:00:13]} 32. Rf4 {[%clk 0:01:04]}  a5 {[%clk 0:00:12]} 33. Rf5 {[%clk 0:01:03]}  b6 {[%clk 0:00:13]} 34. Rb5 {[%clk 0:00:55]}  Kg7 {[%clk 0:00:13]} 35. Kg3 {[%clk 0:00:53]}  Kf8 {[%clk 0:00:10]} 36. Kg4 {[%clk 0:00:53]}  Kg7 {[%clk 0:00:08]} 37. Kf5 {[%clk 0:00:51]}  Kf8 {[%clk 0:00:06]} 38. h4 {[%clk 0:00:51]}  Kg7 {[%clk 0:00:06]} 39. Ke4 {[%clk 0:00:45]}  Kf8 {[%clk 0:00:05]} 40. Rd5 {[%clk 0:00:43]}  Re6+ {[%clk 0:00:05]} 41. Kd3 {[%clk 0:00:44]}  Kg7 {[%clk 0:00:04]} 42. b4 {[%clk 0:00:34]}  axb4 {[%clk 0:00:04]} 43. cxb4 {[%clk 0:00:35]}  Kf8 {[%clk 0:00:04]} 44. Kc4 {[%clk 0:00:33]}  Ke7 {[%clk 0:00:04]} 45. Kb5 {[%clk 0:00:33]}  Re4 {[%clk 0:00:05]} 46. Rd3 {[%clk 0:00:30]}  Rxh4 {[%clk 0:00:04]} 47. Rb3 {[%clk 0:00:30]}  Kd6 {[%clk 0:00:04]} 48. Kxb6 {[%clk 0:00:29]}  Kd5 {[%clk 0:00:04]} 49. a5 {[%clk 0:00:28]}  Kc4 {[%clk 0:00:04]} 50. Rb1 {[%clk 0:00:28]}  Rh5 {[%clk 0:00:04]} 51. a6 {[%clk 0:00:27]} 1-0


[Site "https://www.chess.com"]

[Event "Titled Tuesday Blitz June 8 2021"]
[White "Wagner, Dennis"]
[Black "Siddharth, Jagadeesh"]
[WhiteFideId "24650684"]
[BlackFideId "5818320"]
[WhiteElo "2355"]
[BlackElo "2127"]
[Result "1-0"]
[Round "07"]
[TimeControl "180+1"]
[Date "2021.06.08"]
[WhiteClock "0:02:26"]
[BlackClock "0:01:57"]

1. d4 {[%clk 0:03:00]}  d5 {[%clk 0:02:59]} 2. Nf3 {[%clk 0:03:00]}  Nf6 {[%clk 0:02:59]} 3. c4 {[%clk 0:02:58]}  dxc4 {[%clk 0:03:00]} 4. e3 {[%clk 0:02:58]}  e6 {[%clk 0:03:00]} 5. Bxc4 {[%clk 0:02:59]}  c5 {[%clk 0:03:01]} 6. O-O {[%clk 0:02:59]}  a6 {[%clk 0:03:01]} 7. b3 {[%clk 0:02:50]}  cxd4 {[%clk 0:03:00]} 8. Nxd4 {[%clk 0:02:45]}  Be7 {[%clk 0:03:00]} 9. Bb2 {[%clk 0:02:44]}  O-O {[%clk 0:03:01]} 10. Be2 {[%clk 0:02:44]}  Bd7 {[%clk 0:02:58]} 11. Bf3 {[%clk 0:02:43]}  Nc6 {[%clk 0:02:50]} 12. Nxc6 {[%clk 0:02:43]}  Bxc6 {[%clk 0:02:50]} 13. Bxc6 {[%clk 0:02:43]}  bxc6 {[%clk 0:02:51]} 14. Qc2 {[%clk 0:02:44]}  Qb6 {[%clk 0:02:34]} 15. Nd2 {[%clk 0:02:42]}  Nd5 {[%clk 0:02:30]} 16. Nc4 {[%clk 0:02:42]}  Qb7 {[%clk 0:02:29]} 17. e4 {[%clk 0:02:39]}  Nb4 {[%clk 0:02:13]} 18. Qe2 {[%clk 0:02:39]}  f6 {[%clk 0:01:57]} 19. a3 {[%clk 0:02:26]} 1-0


[Site "https://www.chess.com"]

[Event "Titled Tuesday Blitz June 8 2021"]
[White "Woodward, Andy"]
[Black "Espinosa Veloz, Ermes"]
[WhiteFideId "30953499"]
[BlackFideId "3507424"]
[WhiteElo "2719"]
[BlackElo "2333"]
[Result "0-1"]
[Round "07"]
[TimeControl "180+1"]
[Date "2021.06.08"]
[WhiteClock "0:00:02"]
[BlackClock "0:00:48"]

1. d4 {[%clk 0:03:00]}  Nf6 {[%clk 0:02:57]} 2. c4 {[%clk 0:03:01]}  g6 {[%clk 0:02:56]} 3. Nc3 {[%clk 0:03:01]}  Bg7 {[%clk 0:02:56]} 4. g3 {[%clk 0:03:00]}  d6 {[%clk 0:02:56]} 5. Bg2 {[%clk 0:03:01]}  O-O {[%clk 0:02:57]} 6. Nf3 {[%clk 0:03:01]}  Nbd7 {[%clk 0:02:58]} 7. O-O {[%clk 0:03:01]}  e5 {[%clk 0:02:58]} 8. e4 {[%clk 0:03:01]}  exd4 {[%clk 0:02:58]} 9. Nxd4 {[%clk 0:03:01]}  Re8 {[%clk 0:02:59]} 10. Re1 {[%clk 0:02:57]}  Nc5 {[%clk 0:02:58]} 11. Qc2 {[%clk 0:02:51]}  Ng4 {[%clk 0:02:56]} 12. Nb3 {[%clk 0:02:26]}  Nxb3 {[%clk 0:02:47]} 13. axb3 {[%clk 0:02:25]}  f5 {[%clk 0:02:29]} 14. h3 {[%clk 0:02:19]}  Nf6 {[%clk 0:02:28]} 15. Bg5 {[%clk 0:02:15]}  h6 {[%clk 0:02:28]} 16. Bxf6 {[%clk 0:02:15]}  Bxf6 {[%clk 0:02:26]} 17. Nd5 {[%clk 0:02:10]}  Bg7 {[%clk 0:02:25]} 18. Rad1 {[%clk 0:02:10]}  Bd7 {[%clk 0:02:14]} 19. Kh2 {[%clk 0:01:41]}  Kh7 {[%clk 0:02:12]} 20. exf5 {[%clk 0:01:35]}  Bxf5 {[%clk 0:02:08]} 21. Be4 {[%clk 0:01:35]}  Rxe4 {[%clk 0:02:04]} 22. Rxe4 {[%clk 0:01:36]}  c6 {[%clk 0:02:04]} 23. Nf4 {[%clk 0:01:35]}  Qf6 {[%clk 0:01:57]} 24. Qe2 {[%clk 0:01:22]}  Bxe4 {[%clk 0:01:57]} 25. Qxe4 {[%clk 0:01:23]}  Rf8 {[%clk 0:01:44]} 26. Kg2 {[%clk 0:01:19]}  h5 {[%clk 0:01:43]} 27. h4 {[%clk 0:01:13]}  Bh6 {[%clk 0:01:40]} 28. Nh3 {[%clk 0:01:05]}  Kg7 {[%clk 0:01:32]} 29. Rd3 {[%clk 0:01:00]}  Rf7 {[%clk 0:01:31]} 30. b4 {[%clk 0:00:42]}  Re7 {[%clk 0:01:27]} 31. Qd4 {[%clk 0:00:42]}  Qxd4 {[%clk 0:01:26]} 32. Rxd4 {[%clk 0:00:43]}  Re6 {[%clk 0:01:21]} 33. Ng1 {[%clk 0:00:40]}  Bc1 {[%clk 0:01:16]} 34. b3 {[%clk 0:00:37]}  Ba3 {[%clk 0:01:16]} 35. c5 {[%clk 0:00:24]}  d5 {[%clk 0:01:11]} 36. Nf3 {[%clk 0:00:18]}  Re4 {[%clk 0:01:10]} 37. Kf1 {[%clk 0:00:07]}  Rxd4 {[%clk 0:01:07]} 38. Nxd4 {[%clk 0:00:08]}  Bxb4 {[%clk 0:01:08]} 39. Ne6+ {[%clk 0:00:07]}  Kf6 {[%clk 0:01:07]} 40. Nd8 {[%clk 0:00:08]}  Bxc5 {[%clk 0:01:06]} 41. Nxb7 {[%clk 0:00:08]}  Bb6 {[%clk 0:00:59]} 42. Nd6 {[%clk 0:00:03]}  Ke7 {[%clk 0:00:56]} 43. Nc8+ {[%clk 0:00:03]}  Kd7 {[%clk 0:00:56]} 44. Nxb6+ {[%clk 0:00:04]}  axb6 {[%clk 0:00:56]} 45. Ke2 {[%clk 0:00:04]}  c5 {[%clk 0:00:56]} 46. Kd3 {[%clk 0:00:04]}  b5 {[%clk 0:00:56]} 47. f3 {[%clk 0:00:04]}  Ke6 {[%clk 0:00:56]} 48. g4 {[%clk 0:00:03]}  Ke5 {[%clk 0:00:54]} 49. Ke3 {[%clk 0:00:02]}  d4+ {[%clk 0:00:50]} 50. Kd3 {[%clk 0:00:02]}  Kf4 {[%clk 0:00:48]} 0-1


[Site "https://www.chess.com"]